fUST/lending_fUST_20251214
["ID","MTS","AMOUNT","RATE_DAILY","PERIOD"]
[398430112,1765644645875,-251.356,0.00024447,7]
[398430114,1765644645885,-2434.2,0.00024447,3]
[398430116,1765644645894,-1564.84,0.00024447,3]
[398430118,1765644645904,-500.0,0.00024457,5]
[398430121,1765644645913,-1000.0,0.00024457,2]
[398430124,1765644645922,-716.04307572,0.00024457,2]
[398430126,1765644645931,-151.0,0.000245,9]
[398430128,1765644645940,-151.0,0.000245,9]
[398430130,1765644645949,-151.0,0.000245,6]
[398430132,1765644645959,-151.0,0.000245,10]
[398430134,1765644645968,-500.0,0.0002452,2]
[398430136,1765644645978,-586.77682547,0.0002452,2]
[398430138,1765644645987,-151.0,0.000246,5]
[398430140,1765644645996,-151.0,0.000246,6]
[398430142,1765644646005,-151.0,0.000246,7]
[398430143,1765644646014,-151.0,0.000246,7]
[398430144,1765644646026,-151.0,0.000246,5]
[398430145,1765644646035,-151.0,0.000246,5]
[398430146,1765644646045,-151.0,0.000246,7]
[398430147,1765644646054,-151.0,0.000246,10]
[398430148,1765644646064,-151.0,0.000246,6]
[398430149,1765644646073,-151.0,0.000246,7]
[398430150,1765644646082,-250.0,0.000246,10]
[398430151,1765644646091,-823.8396533,0.00024656,2]
[398430152,1765644646102,-1751.9143812,0.00024656,2]
[398430153,1765644646111,-500.0,0.00024657,2]
[398430154,1765644646121,-500.0,0.00024657,2]
[398430155,1765644646130,-2690.68749978,0.00024657,2]
[398430156,1765644646139,-500.0,0.00024657,2]
[398430157,1765644646150,-500.0,0.00024657,2]
[398430158,1765644646160,-560.80644443,0.00024657,2]
[398430159,1765644646170,-500.0,0.00024657,2]
[398430160,1765644646182,-500.0,0.00024657,2]
[398430161,1765644646192,-385.44503431,0.00024657,2]
[398430162,1765644646202,-500.0,0.00024657,2]
[398430163,1765644646211,-578.09,0.00024657,2]
[398430164,1765644646221,-500.0,0.00024657,2]
[398430165,1765644646230,-500.0,0.00024657,2]
[398430166,1765644646240,-500.0,0.00024657,2]
[398430167,1765644646250,-500.0,0.00024657,2]
[398430168,1765644646259,-500.0,0.00024657,2]
[398430169,1765644646268,-500.0,0.00024657,2]
[398430170,1765644646277,-500.0,0.00024657,2]
[398430171,1765644646287,-947.25,0.00024657,2]
[398430172,1765644646297,-550.55700779,0.00024657,2]
[398430173,1765644646306,-500.0,0.00024657,2]
[398430174,1765644646315,-796.5,0.00024657,2]
[398430175,1765644646325,-500.0,0.00024657,2]
[398430176,1765644646334,-500.0,0.00024657,2]
[398430177,1765644646343,-500.0,0.00024657,2]
[398430178,1765644646353,-500.0,0.00024657,2]
[398430179,1765644646362,-500.0,0.00024657,2]
[398430180,1765644646372,-500.0,0.00024657,2]
[398430181,1765644646381,-500.0,0.00024657,2]
[398430182,1765644646391,-500.0,0.00024657,2]
[398430183,1765644646401,-500.0,0.00024657,2]
[398430184,1765644646410,-500.0,0.00024657,2]
[398430185,1765644646420,-532.77048149,0.00024657,2]
[398430186,1765644646429,-1074.2,0.00024657,2]
[398430187,1765644646438,-500.0,0.00024657,2]
[398430188,1765644646449,-500.0,0.00024657,2]
[398430189,1765644646459,-500.0,0.00024657,2]
[398430190,1765644646468,-500.0,0.00024657,2]
[398430191,1765644646478,-500.0,0.00024657,2]
[398430192,1765644646488,-500.0,0.00024657,2]
[398430193,1765644646498,-500.0,0.00024657,2]
[398430194,1765644646507,-500.0,0.00024657,2]
[398430195,1765644646516,-706.05,0.00024657,2]
[398430196,1765644646525,-500.0,0.00024657,2]
[398430197,1765644646535,-500.0,0.00024657,2]
[398430198,1765644646544,-500.0,0.00024657,2]
[398430199,1765644646554,-500.0,0.00024657,2]
[398430200,1765644646564,-496.1075424,0.00024657,2]
[398430201,1765644646573,-500.0,0.00024657,2]
[398430202,1765644646583,-500.0,0.00024657,2]
[398430203,1765644646593,-500.0,0.00024657,2]
[398430204,1765644646602,-500.0,0.00024657,2]
[398430205,1765644646612,-376.62332816,0.00024657,2]
[398430206,1765644646622,-500.0,0.00024657,2]
[398430207,1765644646632,-500.0,0.00024657,2]
[398430208,1765644646640,-500.0,0.00024657,2]
[398430209,1765644646649,-500.0,0.00024657,2]
[398430210,1765644646658,-502.45397037,0.00024657,2]
[398430211,1765644646667,-500.0,0.00024657,2]
[398430212,1765644646677,-918.93,0.00024657,2]
[398430213,1765644646687,-500.0,0.00024657,2]
[398430214,1765644646696,-500.0,0.00024657,2]
[398430215,1765644646705,-500.0,0.00024657,2]
[398430216,1765644646715,-500.0,0.00024657,2]
[398430217,1765644646725,-664.36,0.00024657,2]
[398430218,1765644646734,-500.0,0.00024657,2]
[398430219,1765644646743,-500.0,0.00024657,2]
[398430220,1765644646752,-619.15,0.00024657,2]
[398430221,1765644646762,-832.29,0.00024657,2]
[398430222,1765644646771,-500.0,0.00024657,2]
[398430223,1765644646781,-500.0,0.00024657,2]
[398430224,1765644646789,-500.0,0.00024657,2]
[398430225,1765644646799,-807.74,0.00024657,2]
[398430226,1765644646808,-500.0,0.00024657,2]
[398430227,1765644646817,-500.0,0.00024657,2]
[398430228,1765644646827,-500.0,0.00024657,2]
[398430229,1765644646836,-500.0,0.00024657,2]
[398430230,1765644646846,-500.0,0.00024657,2]
[398430231,1765644646855,-500.0,0.00024657,2]
[398430232,1765644646864,-500.0,0.00024657,2]
[398430233,1765644646873,-1000.0,0.00024657,2]
[398430234,1765644646882,-500.0,0.00024657,2]
[398430235,1765644646891,-508.2,0.00024657,2]
[398430236,1765644646900,-500.0,0.00024657,2]
[398430237,1765644646910,-500.0,0.00024657,2]
[398430238,1765644646920,-500.0,0.00024657,2]
[398430239,1765644646929,-500.0,0.00024657,2]
[398430240,1765644646938,-575.29,0.00024657,2]
[398430241,1765644646947,-500.0,0.00024657,2]
[398430242,1765644646956,-500.0,0.00024657,2]
[398430243,1765644646966,-500.0,0.00024657,2]
[398430244,1765644646976,-968.2,0.00024657,2]
[398430245,1765644646985,-500.0,0.00024657,2]
[398430246,1765644646994,-569.98193936,0.00024657,2]
[398430247,1765644647004,-223.63615503,0.00024657,2]
[398430248,1765644647013,-500.0,0.00024657,2]
[398430249,1765644647023,-500.0,0.00024657,2]
[398430250,1765644647032,-500.0,0.00024657,2]
[398430251,1765644647042,-667.74,0.00024657,2]
[398430252,1765644647051,-1378.91,0.00024657,2]
[398430253,1765644647061,-500.0,0.00024657,2]
[398430254,1765644647071,-500.0,0.00024657,2]
[398430255,1765644647081,-500.0,0.00024657,2]
[398430256,1765644647090,-227.55,0.00024657,2]
[398430257,1765644647100,-500.0,0.00024657,2]
[398430258,1765644647110,-1095.81,0.00024657,2]
[398430259,1765644647119,-500.0,0.00024657,2]
[398430260,1765644647128,-500.0,0.00024657,2]
[398430261,1765644647137,-500.0,0.00024657,2]
[398430262,1765644647147,-500.0,0.00024657,2]
[398430264,1765644647159,-503.09,0.00024657,2]
[398430265,1765644647169,-500.0,0.00024657,2]
[398430267,1765644647178,-500.0,0.00024657,2]
[398430268,1765644647187,-500.0,0.00024657,2]
[398430270,1765644647198,-765.94,0.00024657,2]
[398430271,1765644647208,-500.0,0.00024657,2]
[398430272,1765644647218,-535.0,0.00024657,2]
[398430273,1765644647229,-500.0,0.00024657,2]
[398430274,1765644647239,-500.0,0.00024657,2]
[398430275,1765644647249,-500.0,0.00024657,2]
[398430276,1765644647259,-560.83,0.00024657,2]
[398430277,1765644647268,-500.0,0.00024657,2]
[398430278,1765644647278,-500.0,0.00024657,2]
[398430279,1765644647287,-500.0,0.00024657,2]
[398430280,1765644647296,-500.0,0.00024657,2]
[398430282,1765644647306,-500.0,0.00024657,2]
[398430284,1765644647315,-500.0,0.00024657,2]
[398430285,1765644647324,-500.0,0.00024657,2]
[398430287,1765644647333,-500.0,0.00024657,2]
[398430289,1765644647343,-244.97144607,0.00024657,2]
[398430291,1765644647352,-500.0,0.00024657,2]
[398430293,1765644647362,-500.0,0.00024657,2]
[398430295,1765644647371,-500.0,0.00024657,2]
[398430297,1765644647380,-500.0,0.00024657,2]
[398430299,1765644647389,-500.0,0.00024657,2]
[398430301,1765644647398,-500.0,0.00024657,2]
[398430302,1765644647408,-500.0,0.00024657,2]
[398430304,1765644647417,-500.0,0.00024657,2]
[398430306,1765644647425,-500.0,0.00024657,2]
[398430308,1765644647435,-500.0,0.00024657,2]
[398430309,1765644647444,-500.0,0.00024657,2]
[398430311,1765644647453,-500.0,0.00024657,2]
[398430312,1765644647463,-500.0,0.00024657,2]
[398430313,1765644647472,-500.0,0.00024657,2]
[398430314,1765644647482,-1396.11,0.00024657,2]
[398430315,1765644647492,-500.0,0.00024657,2]
[398430316,1765644647501,-500.0,0.00024657,2]
[398430317,1765644647511,-500.0,0.00024657,2]
[398430318,1765644647520,-500.0,0.00024657,2]
[398430319,1765644647530,-500.0,0.00024657,2]
[398430320,1765644647539,-466.28597123,0.00024657,2]
[398430321,1765644647549,-500.0,0.00024657,2]
[398430322,1765644647558,-143.11874122,0.00024657,2]
[398430323,1765644647588,-356.88125878,0.00024657,2]
[398430325,1765644647598,-528.62,0.00024657,2]
[398430326,1765644647607,-500.0,0.00024657,2]
[398430327,1765644647617,-500.0,0.00024657,2]
[398430328,1765644647626,-500.0,0.00024657,2]
[398430329,1765644647636,-500.0,0.00024657,2]
[398430330,1765644647646,-1846.74,0.00024657,2]
[398430331,1765644647655,-500.0,0.00024657,2]
[398430332,1765644647665,-500.0,0.00024657,2]
[398430333,1765644647674,-500.0,0.00024657,2]
[398430334,1765644647683,-500.0,0.00024657,2]
[398430335,1765644647692,-500.0,0.00024657,2]
[398430336,1765644647702,-500.0,0.00024657,2]
[398430337,1765644647712,-500.0,0.00024657,2]
[398430339,1765644647721,-500.0,0.00024657,2]
[398430341,1765644647730,-1341.5,0.00024657,2]
[398430343,1765644647739,-500.0,0.00024657,2]
[398430345,1765644647747,-565.49,0.00024657,2]
[398430346,1765644647757,-500.0,0.00024657,2]
[398430349,1765644647766,-500.0,0.00024657,2]
[398430351,1765644647777,-500.0,0.00024657,2]
[398430352,1765644647787,-500.0,0.00024657,2]
[398430354,1765644647796,-832.7,0.00024657,2]
[398430356,1765644647805,-987.89,0.00024657,2]
[398430358,1765644647815,-500.0,0.00024657,2]
[398430360,1765644647824,-500.0,0.00024657,2]
[398430362,1765644647833,-507.77,0.00024657,2]
[398430364,1765644647843,-500.0,0.00024657,2]
[398430365,1765644647852,-500.0,0.00024657,2]
[398430367,1765644647862,-500.0,0.00024657,2]
[398430369,1765644647876,-500.0,0.00024657,2]
[398430370,1765644647886,-500.0,0.00024657,2]
[398430371,1765644647896,-500.0,0.00024657,2]
[398430372,1765644647905,-500.0,0.00024657,2]
[398430373,1765644647914,-1057.49,0.00024657,2]
[398430374,1765644647924,-500.0,0.00024657,2]
[398430375,1765644647934,-543.0,0.00024657,2]
[398430376,1765644647945,-1012.11,0.00024657,2]
[398430377,1765644647954,-500.0,0.00024657,2]
[398430378,1765644647965,-500.0,0.00024657,2]
[398430379,1765644647975,-500.0,0.00024657,2]
[398430380,1765644647984,-500.0,0.00024657,2]
[398430381,1765644647994,-524.6,0.00024657,2]
[398430382,1765644648003,-500.0,0.00024657,2]
[398430383,1765644648013,-500.0,0.00024657,2]
[398430384,1765644648022,-500.0,0.00024657,2]
[398430385,1765644648032,-500.0,0.00024657,2]
[398430386,1765644648043,-904.01,0.00024657,2]
[398430387,1765644648052,-500.0,0.00024657,2]
[398430388,1765644648062,-1622.57,0.00024657,2]
[398430389,1765644648072,-500.0,0.00024657,2]
[398430390,1765644648082,-843.56,0.00024657,2]
[398430391,1765644648092,-856.76,0.00024657,2]
[398430392,1765644648102,-500.0,0.00024657,2]
[398430393,1765644648111,-149.60758071,0.00024657,2]
[398430394,1765644663250,1000.0,0.00017,2]
[398430395,1765644723417,151.26,0.000134,2]
[398430396,1765644723784,151.26,0.000134,2]
[398430397,1765644724237,151.26,0.000135,2]
[398430398,1765644725253,151.26,0.000135,2]
[398430399,1765644725668,151.26,0.000135,2]
[398430400,1765644726082,151.26,0.000135,2]
[398430401,1765644726508,151.26,0.000135,2]
[398430402,1765644726880,151.26,0.000136,2]
[398430403,1765644727313,151.26,0.000136,2]
[398430404,1765644727687,151.26,0.000136,2]
[398430405,1765644728157,151.26,0.000136,2]
[398430406,1765644728808,151.26,0.000136,2]
[398430407,1765644729283,151.26,0.000137,2]
[398430408,1765644729670,151.26,0.000137,2]
[398430409,1765644730069,151.26,0.000137,2]
[398430410,1765644730476,151.26,0.000137,2]
[398430411,1765644731651,151.26,0.000138,2]
[398430412,1765644731908,151.26,0.000138,2]
[398430413,1765644732316,151.26,0.000138,2]
[398430414,1765644732667,151.26,0.000138,2]
[398430415,1765644733044,151.26,0.000138,2]
[398430416,1765644733475,151.26,0.000139,2]
[398430417,1765644733828,151.26,0.000139,2]
[398430418,1765644734545,151.26,0.000139,2]
[398430419,1765644734706,151.26,0.000139,2]
[398430420,1765644735651,151.26,0.000139,2]
[398430421,1765644736120,151.26,0.00014,2]
[398430422,1765644736521,151.26,0.00014,2]
[398430424,1765644980707,457.2,0.00017,2]
[398430429,1765645230604,298.798745,0.00013699,2]
[398430434,1765645443651,156.86,0.000134,2]
[398430436,1765645504035,156.86,0.000134,2]
[398430438,1765645563766,165.3,0.000134,2]
[398430439,1765645564131,165.3,0.00014,2]
[398430440,1765645605129,-313.72046547,0.00017365,2]
[398430441,1765645624759,182.38,0.000134,2]
[398430442,1765645652112,-191.17117714,0.00017365,2]
[398430443,1765645652136,-150.0,0.00017822,2]
[398430444,1765645652158,-500.0,0.00018278,2]
[398430445,1765645652181,-242.25996543,0.00018752,2]
[398430446,1765645652205,-20.44538859,0.00018752,2]
[398430447,1765645683496,175.35,0.000134,2]
[398430448,1765645683933,175.35,0.00014,2]
[398430449,1765645743644,181.93,0.000134,2]
[398430450,1765645744049,181.93,0.00014,2]
[398430640,1765645838050,-407.54620971,0.00018752,2]
[398430642,1765645838060,-699.0,0.00018752,2]
[398430645,1765645838073,-500.0,0.00019241,2]
[398430647,1765645838083,-160.0,0.00019812,2]
[398430649,1765645838094,-177.0,0.00019822,2]
[398430651,1765645838104,-151.0,0.00019988,2]
[398430653,1765645838114,-300.34390115,0.00019988,2]
[398430655,1765645838123,-500.0,0.00019997,2]
[398430657,1765645838132,-500.0,0.00019997,2]
[398430659,1765645838141,-500.0,0.00019997,2]
[398430661,1765645838151,-500.0,0.00019997,2]
[398430663,1765645838161,-500.0,0.00019997,2]
[398430665,1765645838170,-500.0,0.00019997,2]
[398430667,1765645838179,-500.0,0.00019997,2]
[398430669,1765645838188,-500.0,0.00019997,2]
[398430671,1765645838198,-533.0518731,0.00019997,2]
[398430673,1765645838207,-500.0,0.00019997,2]
[398430674,1765645838217,-500.0,0.00019997,2]
[398430676,1765645838227,-500.0,0.00019997,2]
[398430679,1765645838236,-500.0,0.00019997,2]
[398430681,1765645838246,-500.0,0.00019997,2]
[398430682,1765645838256,-500.0,0.00019997,2]
[398430684,1765645838265,-500.0,0.00019997,2]
[398430687,1765645838275,-395.88858297,0.00019997,2]
[398430689,1765645838284,-272.45673112,0.00019997,2]
[398430691,1765645838294,-500.0,0.00019997,2]
[398430693,1765645838303,-500.0,0.00019997,2]
[398430695,1765645838313,-500.0,0.00019997,2]
[398430697,1765645838323,-500.0,0.00019997,2]
[398430698,1765645838332,-542.96708451,0.00019997,2]
[398430723,1765645838562,-500.0,0.00019997,2]
[398430725,1765645838574,-500.0,0.00019997,2]
[398430727,1765645838584,-227.28446223,0.00019997,2]
[398430729,1765645838594,-500.0,0.00019997,2]
[398430731,1765645838604,-500.0,0.00019997,2]
[398430733,1765645838614,-500.0,0.00019997,2]
[398430735,1765645838623,-500.0,0.00019997,2]
[398430737,1765645838632,-500.0,0.00019997,2]
[398430739,1765645838643,-500.0,0.00019997,2]
[398430741,1765645838652,-500.0,0.00019997,2]
[398430743,1765645838662,-500.0,0.00019997,2]
[398430745,1765645838671,-300.0,0.00019997,2]
[398430747,1765645838681,-1200.0,0.00019997,2]
[398430749,1765645838690,-36080.24755033,0.00019998,2]
[398430751,1765645838700,-752.73625706,0.00019998,2]
[398430858,1765645840110,-439.31,0.00019998,2]
[398430863,1765645840163,-12727.70619261,0.00019998,2]
[398430865,1765645840173,-220.0,0.00019998,2]
[398430867,1765645840183,-179.08476174,0.00019999,2]
[398430869,1765645840192,-500.0,0.00019999,2]
[398430871,1765645840202,-645.15852868,0.00019999,2]
[398430873,1765645840212,-9545.11191927,0.0002,2]
[398430875,1765645840224,-299.2891204,0.0002,2]
[398430878,1765645840235,-3079.28350416,0.0002,2]
[398430939,1765645843098,-779.33406792,0.0002,2]
[398430952,1765645845984,-739.06817421,0.0002,2]
[398430979,1765645863232,178.46,0.000134,2]
[398430980,1765645863579,178.46,0.000137,2]
[398430981,1765645921814,1049.68,0.00019,120]
[398430982,1765645983360,178.79,0.000134,2]
[398430983,1765645983737,178.79,0.000137,2]
[398430984,1765645984182,178.79,0.00014,2]
[398430985,1765646044061,157.4,0.000134,2]
[398430986,1765646044518,157.4,0.000135,2]
[398430987,1765646044936,157.4,0.000136,2]
[398430988,1765646045338,157.4,0.000137,2]
[398430989,1765646045729,157.4,0.000138,2]
[398430990,1765646046137,157.4,0.000138,2]
[398430991,1765646046536,157.4,0.000139,2]
[398430992,1765646047565,157.4,0.00014,2]
[398430993,1765646167133,3170.3,0.00017,2]
[398430994,1765646403474,159.99,0.000134,2]
[398430995,1765646403921,159.99,0.000135,2]
[398430996,1765646404295,159.99,0.000135,2]
[398430997,1765646404740,159.99,0.000136,2]
[398430998,1765646405113,159.99,0.000137,2]
[398430999,1765646405555,159.99,0.000137,2]
[398431000,1765646406344,159.99,0.000138,2]
[398431001,1765646406596,159.99,0.000139,2]
[398431002,1765646407002,159.99,0.000139,2]
[398431003,1765646464463,153.92,0.000134,2]
[398431004,1765646464855,153.92,0.000135,2]
[398431005,1765646465253,153.92,0.000136,2]
[398431006,1765646465618,153.92,0.000137,2]
[398431007,1765646466565,153.92,0.000138,2]
[398431008,1765646467003,153.92,0.000138,2]
[398431009,1765646467387,153.92,0.000139,2]
[398431011,1765646524164,157.83,0.000134,2]
[398431012,1765646524542,157.83,0.000134,2]
[398431013,1765646524960,157.83,0.000134,2]
[398431014,1765646525437,157.83,0.000135,2]
[398431015,1765646525979,157.83,0.000135,2]
[398431016,1765646526388,157.83,0.000135,2]
[398431017,1765646526838,157.83,0.000135,2]
[398431018,1765646527774,157.83,0.000135,2]
[398431019,1765646528261,157.83,0.000135,2]
[398431020,1765646528645,157.83,0.000135,2]
[398431021,1765646529014,157.83,0.000135,2]
[398431022,1765646529462,157.83,0.000135,2]
[398431023,1765646529877,157.83,0.000136,2]
[398431024,1765646530391,157.83,0.000136,2]
[398431025,1765646530743,157.83,0.000136,2]
[398431026,1765646531085,157.83,0.000136,2]
[398431027,1765646531745,157.83,0.000136,2]
[398431028,1765646532114,157.83,0.000136,2]
[398431029,1765646532522,157.83,0.000136,2]
[398431030,1765646532929,157.83,0.000136,2]
[398431031,1765646533367,157.83,0.000137,2]
[398431032,1765646533731,157.83,0.000137,2]
[398431033,1765646534306,157.83,0.000137,2]
[398431034,1765646534670,157.83,0.000137,2]
[398431035,1765646535088,157.83,0.000137,2]
[398431036,1765646535506,157.83,0.000137,2]
[398431037,1765646535911,157.83,0.000137,2]
[398431038,1765646536333,157.83,0.000137,2]
[398431039,1765646536681,157.83,0.000138,2]
[398431040,1765646537141,157.83,0.000138,2]
[398431041,1765646537557,157.83,0.000138,2]
[398431042,1765646537937,157.83,0.000138,2]
[398431043,1765646538354,157.83,0.000138,2]
[398431044,1765646544136,157.83,0.000138,2]
[398431045,1765646544549,157.83,0.000138,2]
[398431046,1765646545474,157.83,0.000138,2]
[398431047,1765646545875,157.83,0.000138,2]
[398431048,1765646546221,157.83,0.000139,2]
[398431049,1765646546622,157.83,0.000139,2]
[398431050,1765646547010,157.83,0.000139,2]
[398431051,1765646547443,157.83,0.000139,2]
[398431052,1765646547891,157.83,0.000139,2]
[398431053,1765646548245,157.83,0.000139,2]
[398431054,1765646548615,157.83,0.000139,2]
[398431055,1765646549039,157.83,0.000139,2]
[398431056,1765646549343,157.83,0.00014,2]
[398431057,1765646549890,157.83,0.00014,2]
[398431058,1765646550270,157.83,0.00014,2]
[398431059,1765646550658,157.83,0.00014,2]
[398431060,1765646551491,157.83,0.00014,2]
[398431061,1765646584060,161.58,0.000134,2]
[398431062,1765646584455,161.58,0.000135,2]
[398431063,1765646584855,161.58,0.000135,2]
[398431064,1765646585223,161.58,0.000136,2]
[398431065,1765646585674,161.58,0.000137,2]
[398431066,1765646586289,161.58,0.000137,2]
[398431067,1765646586496,161.58,0.000138,2]
[398431068,1765646586899,161.58,0.000139,2]
[398431069,1765646587507,161.58,0.000139,2]
[398431070,1765646587968,161.58,0.00014,2]
[398431073,1765646703115,175.59,0.000134,2]
[398431074,1765646703697,175.59,0.00014,2]
[398431075,1765646704769,150.0,0.00010615,2]
[398431076,1765646705283,150.0,0.00011121,2]
[398431077,1765646705967,150.0,0.00011626,2]
[398431078,1765646706254,150.0,0.00012132,2]
[398431079,1765646706767,150.0,0.00012637,2]
[398431092,1765646824663,171.27,0.000134,2]
[398431096,1765646829100,-500.0,0.00019141,2]
[398431097,1765646829120,-150.0,0.00019437,2]
[398431098,1765646829141,-431.51824389,0.00019729,2]
[398431108,1765646843088,-384.33100379,0.00019729,2]
[398431109,1765646883057,170.55,0.000134,2]
[398431110,1765646883417,170.55,0.00014,2]
[398431118,1765647004061,173.42,0.000134,2]
[398431151,1765647032125,-150.0,0.00019751,2]
[398431153,1765647032135,-684.7229129,0.00019772,2]
[398431154,1765647032144,-1200.0,0.00019998,2]
[398431157,1765647032153,-484.0,0.00019999,2]
[398431159,1765647032162,-300.0,0.00019999,2]
[398431162,1765647032171,-300.0,0.00019999,2]
[398431164,1765647032180,-300.0,0.00019999,2]
[398431167,1765647032190,-300.0,0.00019999,2]
[398431171,1765647032199,-3447.01024519,0.0002,2]
[398431173,1765647032208,-500.0,0.00020098,2]
[398431176,1765647032218,-298.798745,0.00020187,2]
[398431178,1765647032228,-300.0,0.00020399,10]
[398431181,1765647032236,-300.0,0.00020399,10]
[398431183,1765647032245,-300.0,0.00020399,10]
[398431185,1765647032255,-300.0,0.00020399,10]
[398431188,1765647032265,-300.0,0.00020399,10]
[398431190,1765647032274,-300.0,0.00020399,10]
[398431192,1765647032283,-300.0,0.00020399,10]
[398431193,1765647032292,-300.0,0.00020399,10]
[398431195,1765647032301,-300.0,0.00020399,10]
[398431196,1765647032310,-300.0,0.00020399,10]
[398431197,1765647032319,-300.0,0.00020399,10]
[398431199,1765647032328,-300.0,0.00020399,10]
[398431200,1765647032337,-300.0,0.00020399,10]
[398431202,1765647032346,-300.0,0.00020399,10]
[398431203,1765647032355,-300.0,0.00020399,10]
[398431204,1765647032365,-2843.99252093,0.00020519,2]
[398431205,1765647032374,-602.93131967,0.00020578,2]
[398431206,1765647032384,-500.0,0.00020578,2]
[398431207,1765647032393,-500.0,0.00020578,2]
[398431208,1765647032403,-500.0,0.00020578,2]
[398431209,1765647032412,-500.0,0.00020578,2]
[398431210,1765647032421,-500.0,0.00020578,2]
[398431211,1765647032430,-500.0,0.00020578,2]
[398431212,1765647032439,-379.91215361,0.00020578,2]
[398431213,1765647032449,-500.0,0.00020578,2]
[398431214,1765647032458,-500.0,0.00020578,2]
[398431215,1765647032467,-500.0,0.00020578,2]
[398431216,1765647032478,-500.0,0.00020578,2]
[398431217,1765647032487,-500.0,0.00020578,2]
[398431218,1765647032496,-500.0,0.00020578,2]
[398431219,1765647032505,-500.0,0.00020578,2]
[398431220,1765647032520,-500.0,0.00020578,2]
[398431221,1765647032534,-500.0,0.00020578,2]
[398431222,1765647032544,-500.0,0.00020578,2]
[398431223,1765647032554,-500.0,0.00020578,2]
[398431224,1765647032563,-500.0,0.00020578,2]
[398431225,1765647032572,-500.0,0.00020578,2]
[398431226,1765647032582,-360.98936979,0.00020578,2]
[398431227,1765647032591,-500.0,0.00020578,2]
[398431228,1765647032600,-500.0,0.00020578,2]
[398431229,1765647032610,-500.0,0.00020578,2]
[398431230,1765647032619,-500.0,0.00020578,2]
[398431231,1765647032630,-500.0,0.00020578,2]
[398431232,1765647032643,-500.0,0.00020578,2]
[398431233,1765647032652,-500.0,0.00020578,2]
[398431234,1765647032661,-500.0,0.00020578,2]
[398431235,1765647032670,-500.0,0.00020578,2]
[398431236,1765647032680,-500.0,0.00020578,2]